[Event "21st Alekhine FIDE 2017"]
[Site "Voronezh"]
[Date "2017.06.12"]
[Round "1"]
[White "Teryaeva, Valeria"]
[Black "Ponomariov, Timur"]
[Result "0-1"]
[ECO "C42"]
[WhiteElo "1814"]
[BlackElo "2196"]
[Annotator "ChessBase"]
[PlyCount "53"]
[EventDate "2017.??.??"]
[EventType "swiss"]
[EventCountry "RUS"]
[SourceTitle "playchess.com"]
[Source "ChessBase"]
[SourceQuality "1"]
[TimeControl "40/5400+30:1800+30"]

1. e4 {[%emt 0:00:00]} e5 {[%emt 0:00:09]} 2. Nf3 {[%emt 0:02:02]} Nf6 {[%emt 0:00:44]} 3. Nxe5 {[%emt 0:00:47]} Qe7 {[%emt 0:00:16]} 4. Nf3 {[%emt 0:00:55]} Nxe4 {[%emt 0:00:09]} 5. Be2 {[%emt 0:01:14]} d5 {[%emt 0:00:09]} 6. O-O {[%emt 0:01:22]} Nc6 {[%emt 0:00:08]} 7. Nc3 {[%emt 0:01:21]} Be6 {[%emt 0:05:05]} 8. Bb5 {[%emt 0:03:13]} Qc5 {[%emt 0:03:27]} 9. d4 {[%emt 0:09:05]} Nxc3 {[%emt 0:00:37]} 10. dxc5 {[%emt 0:00:06]} Nxd1 {[%emt 0:00:07]} 11. Rxd1 {[%emt 0:00:04]} Bxc5 {[%emt 0:02:43]} 12. Ne5 {[%emt 0:00:44]} a6 {[%emt 0:00:36]} 13. Bxc6+ {[%emt 0:01:01]} bxc6 {[%emt 0:00:07]} 14. Nxc6 {[%emt 0:00:12]} O-O {[%emt 0:06:29]} 15. Bf4 {[%emt 0:00:20]} Rfe8 {[%emt 0:01:18]} 16. Rd3 {[%emt 0:03:17]} Bb6 {[%emt 0:03:17]} 17. h3 {[%emt 0:10:19]} Bf5 {[%emt 0:13:59]} 18. Rd2 {[%emt 0:01:03]} Re4 {[%emt 0:00:34]} 19. Bg3 {[%emt 0:05:15]} Bd7 {[%emt 0:00:16]} 20. Ne5 {[%emt 0:01:01]} Be6 {[%emt 0:00:05]} 21. Rad1 {[%emt 0:01:12]} Re8 {[%emt 0:01:57]} 22. Nc6 {[%emt 0:11:54]} h5 {[%emt 0:02:48]} 23. c3 {[%emt 0:01:02]} h4 {[%emt 0:01:05]} 24. Bh2 {[%emt 0:02:06]} Bg4 {[%emt 0:02:52]} 25. Rf1 {[%emt 0:00:59]} Be2 {[%emt 0:00:08]} 26. Rc1 Bb5 27. Bf4 0-1

[Event "21st Alekhine FIDE 2017"]
[Site "Voronezh"]
[Date "2017.06.12"]
[Round "1"]
[White "Mezhov, Dmitriy"]
[Black "Provkin, Vladimir"]
[Result "0-1"]
[ECO "E76"]
[WhiteElo "1809"]
[BlackElo "2163"]
[Annotator "ChessBase"]
[PlyCount "107"]
[EventDate "2017.??.??"]
[EventType "swiss"]
[EventCountry "RUS"]
[SourceTitle "playchess.com"]
[Source "ChessBase"]
[SourceQuality "1"]
[TimeControl "40/5400+30:1800+30"]

1. d4 {[%emt 0:00:00]} Nf6 {[%emt 0:00:04]} 2. c4 {[%emt 0:00:00]} g6 {[%emt 0:00:07]} 3. Nc3 {[%emt 0:00:00]} d6 {[%emt 0:00:06]} 4. e4 {[%emt 0:00:00]} Bg7 {[%emt 0:00:05]} 5. f4 {[%emt 0:00:00]} O-O {[%emt 0:00:45]} 6. Nf3 {[%emt 0:00:06]} Na6 {[%emt 0:02:44]} 7. Bd3 {[%emt 0:01:22]} Bg4 {[%emt 0:00:22]} 8. Be3 {[%emt 0:00:25]} e5 {[%emt 0:01:28]} 9. fxe5 {[%emt 0:02:12]} dxe5 {[%emt 0:00:25]} 10. d5 {[%emt 0:00:01]} c5 {[%emt 0:08:16]} 11. O-O {[%emt 0:03:21]} Ne8 {[%emt 0:00:21]} 12. h3 {[%emt 0:01:25]} Bxf3 {[%emt 0:00:06]} 13. Rxf3 {[%emt 0:00:49]} Nd6 {[%emt 0:00:22]} 14. Nb5 {[%emt 0:01:09]} b6 {[%emt 0:01:58]} 15. Nxd6 {[%emt 0:00:05]} Qxd6 {[%emt 0:00:13]} 16. Qd2 {[%emt 0:00:58]} Nc7 {[%emt 0:02:25]} 17. Raf1 {[%emt 0:08:46]} Ne8 {[%emt 0:03:32]} 18. Bh6 Qe7 19. Bxg7 {[%emt 0:10:54]} Kxg7 {[%emt 0:01:15]} 20. h4 {[%emt 0:19:45]} h5 {[%emt 0:06:58]} 21. g3 {[%emt 0:00:36]} Rd8 {[%emt 0:01:39]} 22. a3 {[%emt 0:09:16]} Rd6 {[%emt 0:01:06]} 23. b4 {[%emt 0:02:24]} Rf6 {[%emt 0:02:07]} 24. Qg5 {[%emt 0:02:08]} Qd6 {[%emt 0:00:49]} 25. bxc5 {[%emt 0:00:20]} bxc5 {[%emt 0:03:09]} 26. Qd2 {[%emt 0:04:49]} Rxf3 {[%emt 0:04:40]} 27. Rxf3 {[%emt 0:02:29]} Nf6 {[%emt 0:00:07]} 28. Qa5 {[%emt 0:00:56]} Rb8 {[%emt 0:00:33]} 29. Qxa7 {[%emt 0:02:40]} Rb2 {[%emt 0:03:45]} 30. a4 {[%emt 0:11:08]} Rb6 {[%emt 0:05:25]} 31. Qa5 {[%emt 0:04:38]} Qc7 {[%emt 0:02:14]} 32. Qc3 {[%emt 0:00:29]} Rb4 {[%emt 0:07:36]} 33. Bc2 {[%emt 0:00:23]} Ne8 {[%emt 0:06:22]} 34. a5 {[%emt 0:03:45]} f6 {[%emt 0:06:38]} 35. Qa3 {[%emt 0:02:37]} Nd6 {[%emt 0:00:03]} 36. Bd3 {[%emt 0:00:15]} Qa7 {[%emt 0:13:48]} 37. Qa2 {[%emt 0:01:12]} Nb7 {[%emt 0:02:24]} 38. a6 {[%emt 0:02:08]} Rb6 {[%emt 0:00:10]} 39. Qa4 {[%emt 0:01:10]} Nd6 {[%emt 0:00:36]} 40. Qa5 {[%emt 0:00:39]} Rxa6 {[%emt 0:30:27]} 41. Qd8 {[%emt 0:30:01]} Nf7 {[%emt 0:00:29]} 42. Qc8 {[%emt 0:00:21]} Qb6 {[%emt 0:01:55]} 43. Rf1 {[%emt 0:00:30]} Ra3 {[%emt 0:00:48]} 44. Rb1 {[%emt 0:01:48]} Rb3 {[%emt 0:00:04]} 45. Rd1 {[%emt 0:00:03]} Rxd3 {[%emt 0:01:43]} 46. Rxd3 {[%emt 0:00:30]} Qb1+ {[%emt 0:00:05]} 47. Kf2 {[%emt 0:00:14]} Qxd3 {[%emt 0:00:11]} 48. Qxc5 {[%emt 0:00:01]} Qxe4 {[%emt 0:00:24]} 49. Qc7 {[%emt 0:00:07]} Qd4+ {[%emt 0:00:23]} 50. Kf1 {[%emt 0:00:13]} e4 {[%emt 0:00:16]} 51. c5 {[%emt 0:00:55]} Qxd5 {[%emt 0:00:31]} 52. c6 {[%emt 0:00:04]} e3 {[%emt 0:00:48]} 53. Qb6 {[%emt 0:00:14]} Qf3+ {[%emt 0:00:22]} 54. Ke1 0-1

[Event "21st Alekhine FIDE 2017"]
[Site "Voronezh"]
[Date "2017.06.12"]
[Round "1"]
[White "Astakhov, Alexander"]
[Black "Palin, Denis"]
[Result "1/2-1/2"]
[ECO "A25"]
[WhiteElo "1798"]
[BlackElo "2158"]
[Annotator "ChessBase"]
[PlyCount "94"]
[EventDate "2017.??.??"]
[EventType "swiss"]
[EventCountry "RUS"]
[SourceTitle "playchess.com"]
[Source "ChessBase"]
[SourceQuality "1"]
[TimeControl "40/5400+30:1800+30"]

1. c4 {[%emt 0:00:00]} e5 {[%emt 0:00:25]} 2. Nc3 {[%emt 0:00:00]} d6 {[%emt 0:00:28]} 3. g3 {[%emt 0:00:59]} Nc6 {[%emt 0:00:04]} 4. Bg2 {[%emt 0:00:51]} Be6 {[%emt 0:00:05]} 5. d3 {[%emt 0:00:12]} Qd7 {[%emt 0:00:04]} 6. e3 {[%emt 0:07:27]} g6 {[%emt 0:01:55]} 7. Nge2 {[%emt 0:04:54]} Bh3 {[%emt 0:00:41]} 8. O-O {[%emt 0:07:46]} h5 {[%emt 0:00:09]} 9. f3 {[%emt 0:03:45]} Bxg2 {[%emt 0:02:14]} 10. Kxg2 {[%emt 0:00:18]} h4 {[%emt 0:00:01]} 11. g4 {[%emt 0:01:30]} f5 {[%emt 0:04:36]} 12. h3 {[%emt 0:04:49]} Nge7 {[%emt 0:05:27]} 13. Nd5 {[%emt 0:05:21]} Nxd5 {[%emt 0:02:12]} 14. cxd5 {[%emt 0:00:54]} Ne7 {[%emt 0:00:01]} 15. e4 {[%emt 0:00:49]} f4 {[%emt 0:05:18]} 16. a4 {[%emt 0:11:53]} Bg7 {[%emt 0:03:20]} 17. Nc3 {[%emt 0:10:14]} c6 {[%emt 0:05:53]} 18. Rb1 {[%emt 0:04:25]} Rc8 {[%emt 0:03:25]} 19. Bd2 {[%emt 0:02:47]} O-O {[%emt 0:06:58]} 20. b4 {[%emt 0:03:03]} Rc7 {[%emt 0:13:33]} 21. Qb3 {[%emt 0:02:14]} Kh8 {[%emt 0:03:34]} 22. Rfc1 {[%emt 0:02:02]} Bf6 {[%emt 0:12:12]} 23. Rb2 {[%emt 0:06:21]} Kg7 {[%emt 0:01:19]} 24. Rbc2 {[%emt 0:00:35]} Rfc8 {[%emt 0:00:30]} 25. Be1 {[%emt 0:02:35]} Qd8 {[%emt 0:04:40]} 26. Bf2 {[%emt 0:00:59]} Rd7 {[%emt 0:07:44]} 27. a5 {[%emt 0:00:50]} a6 {[%emt 0:03:14]} 28. Na4 {[%emt 0:01:31]} cxd5 {[%emt 0:00:06]} 29. Rxc8 {[%emt 0:00:21]} Nxc8 {[%emt 0:00:07]} 30. Qxd5 {[%emt 0:01:13]} Rc7 {[%emt 0:01:54]} 31. Rxc7+ {[%emt 0:02:23]} Qxc7 {[%emt 0:00:01]} 32. Qc4 {[%emt 0:00:29]} Qxc4 {[%emt 0:07:51]} 33. dxc4 {[%emt 0:00:02]} Kf7 {[%emt 0:00:01]} 34. Nb6 {[%emt 0:02:34]} Nxb6 {[%emt 0:02:12]} 35. Bxb6 {[%emt 0:00:03]} Ke6 {[%emt 0:00:17]} 36. Kf2 {[%emt 0:00:31]} Kd7 {[%emt 0:00:14]} 37. Ke2 {[%emt 0:00:19]} Bd8 {[%emt 0:02:28]} 38. Bxd8 {[%emt 0:00:20]} Kxd8 {[%emt 0:00:01]} 39. Kd3 {[%emt 0:01:24]} Kc7 {[%emt 0:01:10]} 40. b5 {[%emt 0:01:50]} b6 {[%emt 0:30:51]} 41. axb6+ {[%emt 0:32:45]} Kxb6 {[%emt 0:00:04]} 42. bxa6 {[%emt 0:00:05]} Kxa6 {[%emt 0:00:19]} 43. Kc3 {[%emt 0:00:03]} Ka5 {[%emt 0:00:26]} 44. Kb3 {[%emt 0:00:41]} Kb6 {[%emt 0:00:10]} 45. Kb4 {[%emt 0:00:28]} g5 {[%emt 0:00:19]} 46. Kb3 {[%emt 0:00:13]} Kc5 {[%emt 0:00:44]} 47. Kc3 {[%emt 0:00:13]} Kb6 {[%emt 0:00:07]} 1/2-1/2

[Event "21st Alekhine FIDE 2017"]
[Site "Voronezh"]
[Date "2017.06.12"]
[Round "1"]
[White "Pikalova, Sofya"]
[Black "Puchko, Nikolay"]
[Result "0-1"]
[ECO "B47"]
[WhiteElo "1792"]
[BlackElo "2154"]
[Annotator "ChessBase"]
[PlyCount "110"]
[EventDate "2017.??.??"]
[EventType "swiss"]
[EventCountry "RUS"]
[SourceTitle "playchess.com"]
[Source "ChessBase"]
[SourceQuality "1"]
[TimeControl "40/5400+30:1800+30"]

1. e4 {[%emt 0:00:00]} c5 {[%emt 0:00:26]} 2. Nf3 {[%emt 0:00:00]} Nc6 {[%emt 0:00:06]} 3. d4 {[%emt 0:00:00]} cxd4 {[%emt 0:00:04]} 4. Nxd4 {[%emt 0:00:00]} Qc7 {[%emt 0:00:04]} 5. Nc3 {[%emt 0:01:05]} e6 {[%emt 0:00:06]} 6. g3 {[%emt 0:07:26]} h6 {[%emt 0:04:54]} 7. Bg2 {[%emt 0:01:17]} Nf6 {[%emt 0:00:29]} 8. O-O {[%emt 0:00:35]} Nxd4 {[%emt 0:00:05]} 9. Qxd4 {[%emt 0:00:10]} Bc5 {[%emt 0:00:03]} 10. Qd3 {[%emt 0:03:26]} a6 {[%emt 0:02:06]} 11. Bf4 {[%emt 0:06:55]} e5 {[%emt 0:01:58]} 12. Be3 {[%emt 0:00:09]} d6 {[%emt 0:01:10]} 13. Bxc5 {[%emt 0:01:39]} Qxc5 {[%emt 0:06:21]} 14. Rad1 {[%emt 0:01:46]} Ke7 {[%emt 0:00:51]} 15. Nd5+ {[%emt 0:00:31]} Nxd5 {[%emt 0:00:07]} 16. Qxd5 {[%emt 0:00:10]} Qxd5 {[%emt 0:00:53]} 17. exd5 {[%emt 0:00:34]} Bg4 {[%emt 0:05:18]} 18. Rde1 {[%emt 0:06:00]} Rac8 {[%emt 0:05:11]} 19. c3 {[%emt 0:00:47]} Rc5 {[%emt 0:01:11]} 20. f4 {[%emt 0:01:01]} f6 {[%emt 0:00:20]} 21. fxe5 {[%emt 0:01:11]} dxe5 {[%emt 0:03:58]} 22. Rf4 {[%emt 0:02:26]} Bh5 {[%emt 0:02:01]} 23. Rb4 {[%emt 0:06:00]} Rb8 {[%emt 0:16:35]} 24. Rb6 {[%emt 0:01:26]} Kd7 {[%emt 0:34:15]} 25. d6 {[%emt 0:03:51]} Rb5 {[%emt 0:03:19]} 26. Bh3+ {[%emt 0:00:26]} Kd8 {[%emt 0:00:09]} 27. Rxb5 {[%emt 0:00:15]} axb5 {[%emt 0:00:01]} 28. d7 {[%emt 0:02:52]} Bf3 {[%emt 0:06:13]} 29. Rc1 {[%emt 0:24:51]} Bc6 {[%emt 0:03:54]} 30. c4 {[%emt 0:00:07]} bxc4 {[%emt 0:00:24]} 31. Rxc4 {[%emt 0:00:08]} Bxd7 {[%emt 0:00:15]} 32. Bxd7 {[%emt 0:00:18]} Kxd7 {[%emt 0:00:01]} 33. Rb4 {[%emt 0:01:24]} Kc6 {[%emt 0:00:15]} 34. Kf2 {[%emt 0:00:07]} Kc5 {[%emt 0:00:50]} 35. a3 {[%emt 0:00:10]} b5 {[%emt 0:00:31]} 36. Re4 {[%emt 0:04:40]} b4 {[%emt 0:03:03]} 37. axb4+ {[%emt 0:00:44]} Rxb4 {[%emt 0:00:02]} 38. Re2 {[%emt 0:00:26]} Kc4 {[%emt 0:01:04]} 39. Rd2 {[%emt 0:00:20]} Rb7 {[%emt 0:00:29]} 40. Ke3 {[%emt 0:00:22]} f5 {[%emt 0:30:35]} 41. Rc2+ {[%emt 0:31:32]} Kd5 {[%emt 0:00:02]} 42. Rd2+ {[%emt 0:00:27]} Ke6 {[%emt 0:00:20]} 43. h4 {[%emt 0:00:36]} Rb3+ {[%emt 0:00:04]} 44. Kf2 {[%emt 0:00:09]} e4 {[%emt 0:00:12]} 45. Re2 {[%emt 0:00:57]} Ke5 {[%emt 0:00:15]} 46. Kg2 {[%emt 0:00:21]} g5 {[%emt 0:00:32]} 47. hxg5 {[%emt 0:00:58]} hxg5 {[%emt 0:00:01]} 48. Rc2 {[%emt 0:00:21]} Kd4 {[%emt 0:00:27]} 49. Kf2 {[%emt 0:00:35]} Kd3 {[%emt 0:00:55]} 50. Re2 {[%emt 0:00:15]} f4 {[%emt 0:00:26]} 51. gxf4 {[%emt 0:00:06]} gxf4 {[%emt 0:00:01]} 52. Ke1 {[%emt 0:00:35]} e3 {[%emt 0:00:31]} 53. Kd1 {[%emt 0:01:11]} f3 {[%emt 0:00:32]} 54. Rd2+ {[%emt 0:00:04]} Ke4 {[%emt 0:00:25]} 55. Rd8 {[%emt 0:01:24]} Rd3+ {[%emt 0:00:14]} 0-1

[Event "21st Alekhine FIDE 2017"]
[Site "Voronezh"]
[Date "2017.06.12"]
[Round "1"]
[White "Smirnov, Mark A"]
[Black "Maratkanov, Evgeny"]
[Result "0-1"]
[ECO "D15"]
[WhiteElo "1762"]
[BlackElo "2145"]
[Annotator "ChessBase"]
[PlyCount "86"]
[EventDate "2017.??.??"]
[EventType "swiss"]
[EventCountry "RUS"]
[SourceTitle "playchess.com"]
[Source "ChessBase"]
[SourceQuality "1"]
[TimeControl "40/5400+30:1800+30"]

1. d4 {[%emt 0:00:00]} d5 {[%emt 0:00:08]} 2. c4 {[%emt 0:00:00]} c6 {[%emt 0:00:01]} 3. Nc3 {[%emt 0:00:00]} Nf6 {[%emt 0:00:01]} 4. Nf3 {[%emt 0:00:00]} dxc4 {[%emt 0:00:02]} 5. e3 {[%emt 0:09:42]} b5 {[%emt 0:01:48]} 6. a4 {[%emt 0:00:51]} b4 {[%emt 0:00:17]} 7. Na2 {[%emt 0:00:35]} e6 {[%emt 0:01:33]} 8. Bxc4 {[%emt 0:00:28]} Be7 {[%emt 0:00:42]} 9. O-O {[%emt 0:05:19]} O-O {[%emt 0:00:12]} 10. Re1 {[%emt 0:08:47]} c5 {[%emt 0:06:17]} 11. e4 {[%emt 0:02:31]} Ba6 {[%emt 0:06:51]} 12. Bxa6 {[%emt 0:02:43]} Nxa6 {[%emt 0:00:01]} 13. Bg5 {[%emt 0:04:23]} h6 {[%emt 0:01:21]} 14. Bxf6 {[%emt 0:00:53]} Bxf6 {[%emt 0:00:01]} 15. Qe2 {[%emt 0:14:36]} Qb6 {[%emt 0:03:17]} 16. a5 {[%emt 0:09:15]} Qb7 {[%emt 0:00:01]} 17. dxc5 {[%emt 0:01:56]} Rac8 {[%emt 0:03:49]} 18. e5 {[%emt 0:00:50]} Be7 {[%emt 0:00:19]} 19. Qe4 {[%emt 0:12:00]} Qxe4 {[%emt 0:12:40]} 20. Rxe4 {[%emt 0:00:07]} Bxc5 {[%emt 0:00:03]} 21. Nd4 {[%emt 0:04:40]} Rfd8 {[%emt 0:08:31]} 22. Nb3 {[%emt 0:00:23]} Be7 {[%emt 0:01:43]} 23. Kf1 {[%emt 0:01:58]} Rd3 {[%emt 0:06:50]} 24. Nac1 {[%emt 0:03:41]} Rd1+ {[%emt 0:00:45]} 25. Re1 {[%emt 0:02:08]} Rd5 {[%emt 0:00:49]} 26. Re2 {[%emt 0:04:30]} g5 {[%emt 0:08:15]} 27. g3 {[%emt 0:02:05]} g4 {[%emt 0:00:12]} 28. Na2 {[%emt 0:01:24]} h5 {[%emt 0:01:36]} 29. Rc1 {[%emt 0:02:13]} Rxc1+ {[%emt 0:06:39]} 30. Naxc1 {[%emt 0:00:07]} Kg7 {[%emt 0:00:02]} 31. Kg2 {[%emt 0:01:49]} Bd8 {[%emt 0:05:17]} 32. h3 {[%emt 0:01:50]} gxh3+ {[%emt 0:03:44]} 33. Kxh3 {[%emt 0:00:10]} Bxa5 {[%emt 0:00:03]} 34. Nxa5 {[%emt 0:01:46]} Rxa5 {[%emt 0:00:02]} 35. Kh4 {[%emt 0:00:19]} Rd5 {[%emt 0:01:26]} 36. Kxh5 {[%emt 0:00:46]} Nc5 {[%emt 0:00:11]} 37. f4 {[%emt 0:02:18]} a5 {[%emt 0:01:03]} 38. Rg2 {[%emt 0:00:39]} b3 {[%emt 0:01:42]} 39. g4 {[%emt 0:00:30]} Rd1 {[%emt 0:00:21]} 40. f5 {[%emt 0:01:04]} Rxc1 {[%emt 0:30:32]} 41. f6+ {[%emt 0:30:13]} Kh7 {[%emt 0:00:24]} 42. g5 {[%emt 0:00:53]} Rc2 {[%emt 0:02:28]} 43. Rg1 {[%emt 0:00:36]} Rxb2 {[%emt 0:00:34]} 0-1

[Event "21st Alekhine FIDE 2017"]
[Site "Voronezh"]
[Date "2017.06.12"]
[Round "1"]
[White "Makushin, Aleksandr"]
[Black "Gitelson, Arkady"]
[Result "1/2-1/2"]
[ECO "B22"]
[WhiteElo "1753"]
[BlackElo "2120"]
[Annotator "ChessBase"]
[PlyCount "80"]
[EventDate "2017.??.??"]
[EventType "swiss"]
[EventCountry "RUS"]
[SourceTitle "playchess.com"]
[Source "ChessBase"]
[SourceQuality "1"]
[TimeControl "40/5400+30:1800+30"]

1. e4 {[%emt 0:00:00]} c5 {[%emt 0:00:04]} 2. c3 {[%emt 0:00:00]} g6 {[%emt 0:00:06]} 3. Nf3 {[%emt 0:00:00]} Bg7 {[%emt 0:00:23]} 4. d4 {[%emt 0:00:05]} cxd4 {[%emt 0:00:15]} 5. cxd4 {[%emt 0:00:06]} d5 {[%emt 0:00:07]} 6. e5 {[%emt 0:00:08]} f6 {[%emt 0:00:24]} 7. Bb5+ {[%emt 0:02:18]} Nc6 {[%emt 0:00:50]} 8. O-O {[%emt 0:05:09]} a6 {[%emt 0:02:08]} 9. exf6 {[%emt 0:01:42]} Nxf6 {[%emt 0:02:13]} 10. Ba4 {[%emt 0:08:21]} O-O {[%emt 0:00:51]} 11. h3 {[%emt 0:07:24]} Bf5 {[%emt 0:17:43]} 12. Nc3 {[%emt 0:03:16]} b5 {[%emt 0:01:57]} 13. Bc2 {[%emt 0:00:32]} Bxc2 {[%emt 0:00:48]} 14. Qxc2 {[%emt 0:00:14]} b4 {[%emt 0:00:45]} 15. Na4 {[%emt 0:03:06]} Rc8 {[%emt 0:02:42]} 16. Nc5 {[%emt 0:01:01]} Ne4 {[%emt 0:06:41]} 17. Nxe4 {[%emt 0:11:57]} Nxd4 {[%emt 0:00:03]} 18. Qd1 {[%emt 0:03:10]} dxe4 {[%emt 0:03:10]} 19. Nxd4 {[%emt 0:01:14]} Qxd4 {[%emt 0:00:11]} 20. Qxd4 {[%emt 0:01:01]} Bxd4 {[%emt 0:00:02]} 21. Bd2 {[%emt 0:06:59]} Rc2 {[%emt 0:02:31]} 22. Bxb4 {[%emt 0:01:06]} Rxb2 {[%emt 0:00:10]} 23. Bxe7 {[%emt 0:00:34]} Rfxf2 {[%emt 0:00:11]} 24. Kh1 {[%emt 0:06:08]} Rxg2 {[%emt 0:04:08]} 25. Bd6 {[%emt 0:02:06]} Rgd2 {[%emt 0:04:07]} 26. Rac1 {[%emt 0:01:19]} Bc5 {[%emt 0:10:06]} 27. Rf8+ {[%emt 0:03:35]} Kg7 {[%emt 0:00:04]} 28. Bxc5 {[%emt 0:00:14]} Rh2+ {[%emt 0:00:02]} 29. Kg1 {[%emt 0:00:10]} Rbg2+ {[%emt 0:00:04]} 30. Kf1 {[%emt 0:00:18]} Rg5 {[%emt 0:00:24]} 31. Rc8 {[%emt 0:06:01]} Rf5+ {[%emt 0:09:02]} 32. Kg1 {[%emt 0:03:42]} Rxh3 {[%emt 0:00:05]} 33. Rc7+ {[%emt 0:04:14]} Kh6 {[%emt 0:00:18]} 34. Rc2 {[%emt 0:05:05]} e3 {[%emt 0:08:59]} 35. Re2 {[%emt 0:02:56]} Rg5+ {[%emt 0:04:18]} 36. Rg2 {[%emt 0:00:10]} e2 {[%emt 0:00:14]} 37. Bb4 {[%emt 0:00:29]} Rxg2+ {[%emt 0:05:02]} 38. Kxg2 {[%emt 0:00:03]} Ra3 {[%emt 0:03:09]} 39. Rc2 {[%emt 0:01:26]} Re3 {[%emt 0:02:51]} 40. Kf2 {[%emt 0:00:40]} g5 {[%emt 0:30:57]} 1/2-1/2